bitfinex/quotes_ETHUSD_20230119
["timestamp","ask_amount","ask_price","bid_price","bid_amount"]
[1674138585405,0.76511646,1526.0,1525.7,7.58142376]
[1674138585614,0.76511646,1526.0,1525.9,18.97970482]
[1674138585888,0.76511646,1526.0,1525.9,25.55853859]
[1674138586100,0.76511646,1526.0,1525.9,43.22139245]
[1674138586250,0.76511646,1526.0,1525.9,23.56089245]
[1674138586459,0.76511646,1526.0,1525.9,19.00503859]
[1674138586662,1.44972346,1526.0,1525.9,19.00503859]
[1674138587104,10.38482599,1526.0,1525.9,19.00503859]
[1674138587314,17.00389599,1526.0,1525.9,0.02533377]
[1674138587553,17.00389599,1526.0,1525.8,0.02533377]
[1674138587554,22.09162802,1526.0,1525.8,0.02533377]
[1674138587904,2.71119724,1525.9,1525.7,19.00703858]
[1674138588271,3.74223677,1525.9,1525.7,19.00703858]
[1674138589373,0.68659724,1525.8,1525.7,19.00703858]
[1674138589584,12.62621877,1525.9,1525.7,19.00703858]
[1674138591549,11.59517924,1525.9,1525.7,19.00703858]
[1674138591760,12.62621877,1525.9,1525.7,19.00703858]
[1674138592194,11.59517924,1525.9,1525.7,19.00703858]
[1674138593160,12.62621877,1525.9,1525.7,19.00703858]
[1674138594190,0.68659724,1525.8,1525.7,19.00703858]
[1674138595207,2.60459412,1525.8,1525.7,19.00703858]
[1674138595419,2.60080251,1525.8,1525.7,19.00703858]
[1674138595993,18.28570204,1525.8,1525.7,19.00703858]
[1674138596242,22.84632384,1525.8,1525.7,19.00703858]
[1674138596359,29.89195384,1525.8,1525.7,0.02733376]
[1674138596569,29.89195384,1525.8,1525.7,0.00199999]
[1674138596570,33.23499828,1525.8,1525.7,0.00199999]
[1674138597995,24.07561291,1525.8,1525.7,0.00199999]
[1674138598142,17.52168291,1525.8,1525.7,0.00199999]
[1674138598356,14.94537438,1525.8,1525.7,0.00199999]
[1674138598807,14.97237438,1525.8,1525.7,0.00199999]
[1674138599348,16.00263818,1525.8,1525.7,0.00199999]
[1674138599773,14.62889068,1525.8,1525.7,0.00199999]
[1674138599989,13.59862688,1525.8,1525.7,0.00199999]
[1674138600192,2.1267,1525.8,1525.7,0.00199999]
[1674138600440,0.027,1525.8,1525.7,1.24799999]
[1674138600715,1.351,1525.8,1525.7,0.00199999]
[1674138600960,20.25916018,1525.8,1525.7,0.00199999]
[1674138601172,21.69890768,1525.8,1525.7,18.98170481]
[1674138601388,30.85833778,1525.8,1525.7,17.75903859]
[1674138601915,30.85833778,1525.8,1525.5,4.8393477]
[1674138602127,22.5732542,1525.6,1525.5,4.8393477]
[1674138602277,27.46504402,1525.6,1525.5,4.8393477]
[1674138602486,9.68983223,1525.6,1525.5,4.8393477]
[1674138602698,0.5577,1525.6,1525.5,4.8393477]
[1674138602963,0.5577,1525.7,1525.5,4.8393477]
[1674138603116,0.4917,1525.7,1525.5,4.8393477]
[1674138603329,0.5847,1525.8,1525.5,5.98564647]
[1674138603610,0.027,1525.8,1525.5,25.71729647]
[1674138603804,0.027,1525.8,1525.6,1.0]
[1674138603957,0.027,1525.8,1525.7,1.346]
[1674138604433,0.027,1525.8,1525.7,14.45472]
[1674138604640,0.027,1525.8,1525.7,14.52072]
[1674138605067,0.027,1525.8,1525.7,21.07308]
[1674138605274,0.027,1525.8,1525.7,24.36682759]
[1674138605449,1e-08,1525.8,1525.7,24.36682759]
[1674138605873,1e-08,1525.8,1525.7,42.10053241]
[1674138606060,1e-08,1525.8,1525.7,62.10053241]
[1674138607367,1e-08,1525.8,1525.7,65.10053241]
[1674138607694,1e-08,1525.8,1525.7,66.23886332]
[1674138607883,1e-08,1525.8,1525.7,69.48331523]
[1674138608099,9.20129455,1526.3,1525.7,71.9237421]
[1674138608100,0.4915,1526.3,1525.7,71.9237421]
[1674138608432,1.27650804,1526.4,1526.0,1.545]
[1674138608601,1.27650804,1526.4,1526.1,16.39686759]
[1674138608793,1.27650804,1526.4,1526.2,4.29174759]
[1674138609004,1.27650804,1526.4,1526.3,9.84353759]
[1674138609249,1.27650804,1526.4,1526.3,21.69236135]
[1674138609745,1.27650804,1526.4,1526.3,4.80553376]
[1674138609954,1.27650804,1526.4,1526.3,4.73953376]
[1674138610269,1.27650804,1526.4,1526.3,5.73953376]
[1674138610539,1.27650804,1526.4,1526.3,5.80553376]
[1674138610689,1.27650804,1526.4,1526.3,9.09728135]
[1674138612006,1.27650804,1526.4,1526.3,8.09728135]
[1674138612327,1.27650804,1526.4,1526.3,11.35732376]
[1674138612683,1.27650804,1526.4,1526.3,1.80553376]
[1674138612963,1.27650804,1526.4,1526.2,44.35150482]
[1674138613869,1.27650804,1526.4,1526.2,37.79970482]
[1674138614646,1.27650804,1526.4,1526.2,44.35171482]
[1674138614817,1.27650804,1526.4,1526.3,3.29174759]
[1674138615027,1.27650804,1526.4,1526.3,16.39532759]
[1674138615253,1.27650804,1526.4,1526.3,22.53603183]
[1674138615470,1.27650804,1526.4,1526.3,25.53403183]
[1674138615687,1.27650804,1526.4,1526.3,27.31303183]
[1674138616221,1.27650804,1526.4,1526.3,22.24428424]
[1674138616439,1.27650804,1526.4,1526.3,15.69249424]
[1674138616627,1.27650804,1526.4,1526.3,15.69049424]
[1674138616847,1.27650804,1526.4,1526.3,15.69249424]
[1674138618706,1.27650804,1526.4,1526.3,22.24428424]
[1674138619070,1.27650804,1526.4,1526.3,25.53603183]
[1674138619217,1.27650804,1526.4,1526.3,25.76603183]
[1674138619423,0.066,1526.7,1526.4,1.276]
[1674138619785,0.17622284,1526.8,1526.5,29.85306759]
[1674138619998,0.17622284,1526.8,1526.6,6.78314759]
[1674138620299,0.17622284,1526.8,1526.7,23.17195759]
[1674138620512,0.17622284,1526.8,1526.7,46.00795759]
[1674138621756,0.17622284,1526.8,1526.7,46.23795759]
[1674138622089,0.17622284,1526.8,1526.7,52.76026388]
[1674138623174,0.18109076,1527.2,1526.9,26.19652]
[1674138623389,1.8601,1527.5,1527.1,19.64505]
[1674138623390,0.32323596,1527.5,1527.1,19.64505]
[1674138623598,0.32323596,1527.5,1527.1,23.00279759]
[1674138623752,0.32323596,1527.5,1527.1,25.30307735]
[1674138623966,0.32523596,1527.5,1527.1,43.03478217]
[1674138624333,0.32323596,1527.5,1527.1,63.03678217]
[1674138626643,1.69223596,1527.5,1527.1,59.74503458]
[1674138626817,3.79211174,1527.5,1527.1,63.03678217]
[1674138627027,1.69223596,1527.5,1527.1,63.03678217]
[1674138627274,20.67552185,1527.6,1527.1,63.03678217]
[1674138627493,1.369,1527.5,1527.1,50.89640482]
[1674138627708,1.369,1527.3,1527.1,37.79970482]
[1674138627872,1.5059,1527.3,1527.1,37.79970482]
[1674138628220,0.1369,1527.3,1527.1,37.79970482]
[1674138628370,0.4912,1527.3,1527.1,37.79970482]
[1674138628581,0.4912,1527.3,1527.1,17.79970482]
[1674138629741,0.4912,1527.3,1527.1,24.34454758]
[1674138629891,0.4911,1527.4,1527.1,24.34654758]
[1674138630101,0.67711,1527.4,1527.1,24.34654758]
[1674138630369,2.04611,1527.4,1527.1,17.79821758]
[1674138630558,1.8601,1527.4,1527.1,17.79821758]
[1674138630770,1.369,1527.4,1527.1,17.79821758]
[1674138631385,0.4912,1527.3,1527.1,17.79821758]
[1674138631579,1.369,1527.2,1527.1,17.79821758]
[1674138631782,8.40813,1527.2,1527.1,17.79821758]
[1674138631998,8.47413,1527.2,1527.1,0.06451276]
[1674138632361,8.47413,1527.2,1526.8,17.73370482]
[1674138632689,1.8602,1527.1,1526.8,30.89746758]
[1674138632841,0.4912,1527.1,1526.8,34.64220834]
[1674138633044,0.4912,1527.1,1526.8,37.93395593]
[1674138633256,19.1079,1527.3,1527.0,1.0]
[1674138633513,8.3491,1527.3,1527.1,13.5879]
[1674138633694,0.066,1527.3,1527.1,13.65241276]
[1674138633923,0.4911,1527.5,1527.1,13.65241276]
[1674138634472,20.66782185,1527.6,1527.1,13.65241276]
[1674138634621,10.40022185,1527.6,1527.3,17.73370482]
[1674138634830,0.25702185,1527.6,1527.4,6.54707]
[1674138635080,0.19102185,1527.6,1527.4,6.61158276]
[1674138635309,0.68212185,1527.6,1527.4,19.53964611]
[1674138635625,0.68212185,1527.6,1527.5,16.38502759]
[1674138635626,0.19102185,1527.6,1527.5,16.38502759]
[1674138635813,0.19102185,1527.6,1527.5,19.04212596]
[1674138636155,0.19102185,1527.6,1527.5,9.21973837]
[1674138636785,0.19102185,1527.6,1527.5,2.67309837]
[1674138636937,1.51502185,1527.6,1527.4,20.06451276]
[1674138638259,1.369,1527.5,1527.4,0.06451276]
[1674138638404,2.80312918,1527.5,1527.3,17.79821758]
[1674138638826,2.31202918,1527.5,1527.3,17.79821758]
[1674138639095,1.362,1527.4,1527.3,17.79821758]
[1674138639406,8.40017,1527.4,1527.3,0.06451276]
[1674138639630,8.46617,1527.4,1527.1,0.55571276]
[1674138639773,0.4912,1527.3,1527.1,0.4912]
[1674138640195,0.4912,1527.3,1527.1,1.4912]
[1674138640404,0.066,1527.4,1527.1,8.03953]
[1674138640764,18.5835,1527.5,1527.2,0.803953]
[1674138641163,0.5571,1527.5,1527.2,0.803953]
[1674138641380,0.4911,1527.5,1527.1,7.10404276]
[1674138641726,7.03788,1527.5,1527.1,0.55571276]
[1674138641900,0.703788,1527.4,1527.1,0.4912]
[1674138642763,7.250968,1527.4,1527.1,0.4912]
[1674138642978,7.316968,1527.4,1527.1,0.4912]
[1674138645894,6.61318,1527.4,1527.1,0.4912]
[1674138646228,0.066,1527.4,1527.1,13.58778]
[1674138646401,0.4911,1527.5,1527.1,7.10394276]
[1674138646876,13.34979185,1527.6,1527.1,7.10394276]
[1674138646877,0.25702185,1527.6,1527.2,3.29174759]
[1674138647024,0.19102185,1527.6,1527.4,6.54707]
[1674138647234,0.19102185,1527.6,1527.4,7.61158276]
[1674138647479,0.19102185,1527.6,1527.4,35.18410517]
[1674138647949,0.19102185,1527.6,1527.5,13.09328]
[1674138648160,0.19102185,1527.6,1527.5,17.23082428]
[1674138649598,1.51502185,1527.6,1527.5,0.06451276]
[1674138649806,0.19102185,1527.6,1527.4,17.79821758]
[1674138650368,0.19102185,1527.6,1527.4,40.73083517]
[1674138650522,0.19102185,1527.6,1527.5,11.61972352]
[1674138650732,0.19102185,1527.6,1527.5,11.68423628]
[1674138651572,0.19102185,1527.6,1527.5,28.06926387]
[1674138652360,0.19102185,1527.6,1527.5,28.06618068]
[1674138653192,0.19102185,1527.6,1527.5,27.06618068]
[1674138654735,0.19102185,1527.6,1527.5,23.77443309]
[1674138655138,0.19102185,1527.6,1527.5,1.31051276]
[1674138655353,0.19102185,1527.6,1527.5,14.33928]
[1674138655622,0.19102185,1527.6,1527.5,14.40379276]
[1674138656196,0.19102185,1527.6,1527.5,20.95043276]
[1674138656508,1e-08,1527.6,1527.5,26.0054448]
[1674138656732,1e-08,1527.6,1527.5,36.20428976]
[1674138657596,0.21888096,1528.1,1527.5,42.70502531]
[1674138657778,0.21888096,1528.1,1527.7,1.0]
[1674138657977,0.21888096,1528.1,1527.8,22.92755759]
[1674138658188,0.21888096,1528.1,1527.9,5.58450335]
[1674138658534,0.21888096,1528.1,1528.0,13.089]
[1674138658720,0.21888096,1528.1,1528.0,34.17896517]
[1674138659271,0.21888096,1528.1,1528.0,37.40896517]
[1674138660060,0.21888096,1528.1,1528.0,38.76896517]
[1674138660271,0.21888096,1528.1,1528.0,45.29127146]
[1674138660423,0.21888096,1528.3,1528.0,42.70757856]
[1674138660635,0.21888096,1528.3,1528.0,18.73627227]
[1674138660844,0.21888096,1528.3,1528.0,17.79821758]
[1674138662044,0.21888096,1528.3,1528.0,17.77085208]
[1674138663149,0.21888096,1528.3,1528.1,4.29174759]
[1674138663360,0.21888096,1528.3,1528.1,1.0]
[1674138663551,0.65693243,1528.2,1528.0,17.77085208]
[1674138663765,0.08758134,1528.2,1528.0,17.77085208]
[1674138663975,0.4909,1528.1,1528.0,17.77085208]
[1674138664146,13.57904,1528.1,1528.0,17.77085208]
[1674138664357,11.74771759,1528.1,1528.0,0.066]
[1674138664673,11.74771759,1528.1,1527.5,20.0]
[1674138664674,16.20249018,1528.1,1527.5,20.0]
[1674138665040,1.357,1528.0,1527.5,20.066]
[1674138665253,0.491,1527.9,1527.5,20.066]
[1674138665569,0.491,1527.9,1527.6,1.0]
[1674138665715,0.491,1527.9,1527.5,20.066]
[1674138666194,14.94986,1527.9,1527.5,20.066]
[1674138666510,1.369,1527.8,1527.5,20.066]
[1674138666666,7.9146,1527.8,1527.5,0.066]
[1674138666875,0.79146,1527.7,1527.3,21.0]
[1674138667102,0.79146,1527.7,1527.3,21.066]
[1674138667315,0.491,1527.7,1527.4,1.0]
[1674138667558,0.491,1527.7,1527.3,21.066]
[1674138667559,0.491,1527.7,1527.3,20.066]
[1674138668176,8.4716,1527.8,1527.3,20.066]
[1674138668364,0.84716,1527.7,1527.3,20.066]
[1674138668884,2.20516,1527.7,1527.3,20.066]
[1674138669101,1.36,1527.5,1527.3,20.066]
[1674138669335,4.66074759,1527.4,1527.3,0.066]
[1674138669505,18.22096235,1527.4,1527.2,0.02988611]
[1674138669708,18.28696235,1527.4,1527.2,0.02988611]
[1674138669921,18.77806235,1527.4,1527.2,0.02988611]
[1674138670529,1.02317476,1527.4,1527.2,0.02988611]
[1674138670662,1.42631748,1527.3,1527.2,0.02988611]
[1674138671558,3.78831748,1527.3,1527.2,0.02988611]
[1674138671753,22.03326507,1527.3,1527.2,0.02988611]
[1674138671966,22.32926507,1527.3,1527.2,0.02988611]
[1674138672168,25.32926507,1527.3,1527.2,0.02988611]
[1674138672761,1.0,1527.2,1527.1,3.74605828]
[1674138672967,22.0107341,1527.2,1527.1,3.74605828]
[1674138673183,25.73366653,1527.2,1527.1,3.74605828]
[1674138673494,25.73366653,1527.2,1527.1,1.75637441]
[1674138673760,13.09774,1527.0,1526.7,0.03473779]
[1674138673915,6.54964,1526.8,1526.7,0.03473779]
[1674138674128,6.61564,1526.8,1526.7,0.03473779]
[1674138674462,16.45702759,1526.8,1526.7,0.03473779]
[1674138674669,17.81402759,1526.8,1526.7,0.03473779]
[1674138675021,20.13118764,1526.8,1526.7,0.03473779]
[1674138675173,20.85248764,1526.8,1526.7,0.03473779]
[1674138675907,14.60474005,1526.8,1526.7,0.03473779]
[1674138677593,9.12199665,1527.1,1526.8,0.61662743]
[1674138677914,6.61463,1527.1,1526.8,0.61662743]
[1674138678330,7.10583,1527.1,1526.8,0.61662743]
[1674138679013,0.5572,1527.1,1526.8,0.61662743]
[1674138679229,7.10514,1527.2,1526.8,0.61662743]
[1674138681382,6.61394,1527.2,1526.8,0.61662743]
[1674138681754,0.066,1527.2,1527.0,1.362]
[1674138681916,13.15997,1527.5,1527.0,2.362]
[1674138682283,6.61297,1527.5,1527.0,21.0]
[1674138682589,6.61297,1527.5,1527.1,2.1]
[1674138682802,6.61297,1527.5,1527.2,1.0]
[1674138684270,0.066,1527.5,1527.2,1.0]
[1674138684582,7.03746,1527.6,1527.2,1.0]
[1674138684583,6.61236,1527.6,1527.2,1.0]
[1674138684902,6.61236,1527.6,1527.1,3.166]
[1674138685054,6.61236,1527.6,1527.1,3.1]
[1674138685259,13.15872,1527.6,1527.1,3.1]
[1674138685796,13.15872,1527.6,1527.2,1.0]
[1674138686007,13.15872,1527.6,1527.2,1.41]
[1674138686471,6.61236,1527.6,1527.2,1.41]
[1674138686626,7.10346,1527.6,1527.2,1.41]
[1674138686841,7.10346,1527.6,1527.2,2.779]
[1674138687525,0.066,1527.6,1527.2,6.07074759]
[1674138687734,6.54596,1527.7,1527.4,1.0]
[1674138687735,0.066,1527.7,1527.4,1.0]
[1674138687894,6.5456,1527.8,1527.4,1.369]
[1674138687895,6.6116,1527.8,1527.4,1.369]
[1674138688103,7.1026,1527.8,1527.4,21.56660748]
[1674138688451,7.1026,1527.8,1527.4,21.63260748]
[1674138688844,7.1026,1527.8,1527.4,20.26360748]
[1674138690141,0.066,1527.8,1527.5,2.02636075]
[1674138690476,0.066,1527.9,1527.5,6.67410834]
[1674138690793,0.2683251,1528.0,1527.7,1.0]
[1674138690945,0.2023251,1528.0,1527.7,2.93307476]
[1674138691422,0.2023251,1528.0,1527.7,6.22482235]
[1674138691633,0.2023251,1528.0,1527.7,6.29082235]
[1674138692554,0.2023251,1528.0,1527.8,5.28882983]
[1674138692736,0.2023251,1528.0,1527.8,5.35482983]
[1674138692937,0.2023251,1528.0,1527.8,0.69508224]
[1674138693148,0.2023251,1528.0,1527.8,20.0]
[1674138693413,6.7469551,1528.0,1527.8,20.066]
[1674138693572,0.2683251,1528.0,1527.8,20.066]
[1674138693782,0.2023251,1528.0,1527.8,23.35774759]
[1674138694032,0.2023251,1528.0,1527.9,2.33577476]
[1674138694405,0.2023251,1528.0,1527.8,20.066]
[1674138695672,0.2023251,1528.0,1527.9,1.0]
[1674138695936,0.2023251,1528.0,1527.8,20.066]
[1674138696090,0.2023251,1528.0,1527.8,23.35774759]
[1674138699708,0.2023251,1528.0,1527.8,23.35477977]
[1674138699915,0.2023251,1528.0,1527.9,2.33547798]
[1674138700321,0.2023251,1528.0,1527.8,23.35477977]
[1674138700537,13.08986,1527.9,1527.8,20.06303218]
[1674138700811,13.64686,1527.9,1527.8,20.06303218]
[1674138701145,13.64686,1527.9,1527.8,0.066]
[1674138701355,16.15123927,1527.9,1527.5,1.0]
[1674138701802,16.15123927,1527.9,1527.4,20.06303218]
[1674138702644,16.15123927,1527.9,1527.5,1.0]
[1674138703660,16.15123927,1527.9,1527.4,20.06303218]
[1674138703874,16.15123927,1527.9,1527.4,23.35277977]
[1674138704085,16.15123927,1527.9,1527.4,26.48149975]
[1674138704593,16.14802817,1527.9,1527.5,1.0]
[1674138704808,16.14802817,1527.9,1527.4,26.48149975]
[1674138704975,16.14802817,1527.9,1527.4,23.18975216]
[1674138705177,17.51202817,1527.9,1527.4,20.06303218]
[1674138705387,18.19852272,1527.9,1527.4,20.06303218]
[1674138705596,1.355,1527.8,1527.4,20.06303218]
[1674138705858,19.63761,1527.7,1527.4,20.06303218]
[1674138706010,21.802871,1527.7,1527.4,20.06303218]
[1674138706693,21.802871,1527.7,1527.4,0.066]
[1674138706909,22.293871,1527.7,1527.2,20.06303218]
[1674138707061,21.802871,1527.7,1527.2,20.06303218]
[1674138707270,21.802871,1527.7,1527.3,1.0]
[1674138707931,19.70361,1527.7,1527.3,4.29174759]
[1674138708114,6.61187,1527.7,1527.4,3.29174759]
[1674138708329,0.066,1527.7,1527.4,3.29174759]
[1674138708553,13.15728,1527.8,1527.5,1.32917476]
[1674138708816,6.61164,1527.8,1527.5,4.62092235]
[1674138708975,6.61164,1527.8,1527.6,3.29174759]
[1674138708976,0.066,1527.8,1527.6,3.29174759]
[1674138709169,0.066,1527.9,1527.7,2.89917476]
[1674138709381,13.3577751,1528.0,1527.7,2.89917476]
[1674138710150,13.3577751,1528.0,1527.7,1.57517476]
[1674138710650,13.3577751,1528.0,1527.7,1.246]
[1674138711107,13.3577751,1528.0,1527.6,20.06303218]
[1674138711108,19.9025751,1528.0,1527.6,20.06303218]
[1674138712063,20.3935751,1528.0,1527.6,20.06303218]
[1674138712300,21.08006965,1528.0,1527.6,20.06303218]
[1674138712465,20.3935751,1528.0,1527.6,20.06303218]
[1674138712682,2.03935751,1527.9,1527.6,20.06303218]
[1674138712846,13.0907,1527.8,1527.6,20.06303218]
[1674138713221,13.1567,1527.8,1527.6,20.06303218]
[1674138713534,19.70205,1527.8,1527.6,20.06303218]
[1674138713899,3.29174759,1527.7,1527.6,0.066]
[1674138714222,3.29174759,1527.7,1527.3,20.06303218]
[1674138714223,25.39029259,1527.7,1527.3,20.06303218]
[1674138714599,19.63992,1527.5,1527.3,0.066]
[1674138714759,19.70592,1527.5,1527.0,1.0]
[1674138714970,19.70592,1527.5,1527.1,19.99703218]
[1674138715184,19.6425,1527.3,1527.1,20.06303218]
[1674138715383,19.7085,1527.3,1527.1,0.066]
[1674138715594,19.7085,1527.3,1526.9,19.99703218]
[1674138715907,21.74747051,1527.3,1526.9,20.06303218]
[1674138717402,3.78294759,1527.2,1526.9,0.066]
[1674138717596,21.02334476,1527.1,1526.7,20.03176997]
[1674138717788,20.08934476,1527.1,1526.7,20.09776997]
[1674138718365,20.08934476,1527.1,1526.7,0.10073779]
[1674138718589,1.76891342,1527.0,1526.7,0.03473779]
[1674138718743,20.13893,1526.9,1526.7,0.03473779]
[1674138719103,20.20493,1526.9,1526.7,0.03473779]
[1674138720868,7.10651,1526.9,1526.7,0.03473779]
[1674138721257,6.61521,1526.9,1526.7,0.03473779]
[1674138721624,14.529954,1526.9,1526.7,0.03473779]
[1674138721780,1.8153,1526.8,1526.7,0.03473779]
[1674138722254,14.91458,1526.8,1526.7,0.03473779]
[1674138722409,14.98058,1526.8,1526.7,0.03473779]
[1674138723398,18.27232759,1526.8,1526.7,0.03473779]
[1674138723590,23.64629901,1526.8,1526.7,3.779e-05]
[1674138723800,23.64629901,1526.8,1526.6,0.03255186]
[1674138723801,1.0,1526.7,1526.6,0.03255186]
[1674138724029,23.17128759,1526.7,1526.4,0.03117629]
[1674138724250,8.59993,1526.5,1526.1,0.09785294]
[1674138724426,19.65537,1526.3,1526.1,0.03185294]
[1674138724639,19.0385244,1526.3,1526.1,0.03185294]
[1674138725267,1.0,1526.2,1526.1,0.03185294]
[1674138725478,3.29174759,1526.2,1526.1,0.03185294]
[1674138725963,16.39618759,1526.2,1526.1,0.03185294]
[1674138726152,16.95368759,1526.2,1526.1,0.03185294]
[1674138726322,19.95368759,1526.2,1526.0,0.03473779]
[1674138726693,11.03611635,1526.1,1526.0,0.03473779]
[1674138726847,24.69901635,1526.1,1526.0,0.03473779]
[1674138727052,24.69901635,1526.1,1525.5,4.95188917]
[1674138727270,5.33074759,1525.9,1525.5,4.88588917]
[1674138727579,33.22952759,1525.8,1525.5,4.88588917]
[1674138727832,6.55479,1525.6,1525.5,4.88588917]
[1674138728166,10.04572,1525.8,1525.6,1.14837993]
[1674138728473,11.771676,1525.8,1525.6,1.14837993]
[1674138729508,0.5577,1525.8,1525.6,1.14837993]
[1674138729702,6.55384,1525.9,1525.6,4.44012752]
[1674138729703,0.066,1525.9,1525.6,4.44012752]
[1674138730005,0.066,1526.1,1525.7,3.29174759]
[1674138730338,15.27971,1526.3,1525.8,0.32917476]
[1674138730339,15.34571,1526.3,1525.8,0.32917476]
[1674138730566,13.10538,1526.1,1525.6,21.14541211]
[1674138730893,6.55359,1525.9,1525.6,21.21141211]
[1674138731078,6.61959,1525.9,1525.6,21.21141211]
[1674138731291,6.61959,1525.9,1525.6,1.21437993]
[1674138731524,6.61959,1525.9,1525.6,1.14837993]
[1674138732578,0.066,1525.9,1525.6,1.14837993]
[1674138732786,7.99864,1526.1,1525.7,0.11483799]
[1674138732999,0.954,1526.1,1525.7,0.11483799]
[1674138733147,0.888,1526.1,1525.7,1.11483799]
[1674138733521,0.888,1526.1,1525.8,0.1114838]
[1674138734138,0.888,1526.1,1525.7,1.11483799]
[1674138735406,0.888,1526.1,1525.7,10.96093558]
[1674138735637,0.888,1526.1,1525.8,3.29174759]
[1674138735812,0.888,1526.1,1525.8,9.84559759]
[1674138736022,0.888,1526.1,1525.9,3.78334759]
[1674138736233,0.888,1526.1,1526.0,10.22315235]
[1674138736489,0.888,1526.1,1526.0,13.34715235]
[1674138736702,0.888,1526.1,1526.0,20.13022235]
[1674138736861,0.066,1526.6,1526.1,0.93277508]
[1674138737075,0.4914,1526.7,1526.2,9.84380759]
[1674138737411,0.4914,1526.7,1526.3,5.27612835]
[1674138737644,0.066,1526.9,1526.4,23.28877977]
[1674138737967,6.54859,1527.1,1526.4,20.55253218]
[1674138737968,13.09977,1527.0,1526.4,20.55253218]
[1674138738121,17.11037659,1527.0,1526.4,20.06303218]
[1674138738349,7.54954,1526.9,1526.4,20.06303218]
[1674138738596,9.13066166,1526.9,1526.4,20.06303218]
[1674138738983,0.066,1526.9,1526.4,20.06303218]
[1674138739191,0.066,1527.0,1526.5,4.29174759]
[1674138739522,7.10556,1527.1,1526.5,4.29174759]
[1674138739702,6.61436,1527.1,1526.6,0.42917476]
[1674138739916,6.61436,1527.1,1526.5,4.29174759]
[1674138739917,16.45446759,1527.1,1526.5,0.066]
[1674138740181,3.4913,1527.0,1526.4,20.06303218]
[1674138740390,6.54951,1526.9,1526.4,20.06303218]
[1674138740557,6.61551,1526.9,1526.4,22.82291047]
[1674138740914,6.61551,1526.9,1526.4,20.06303218]
[1674138741321,0.4913,1526.8,1526.4,20.06303218]
[1674138741497,6.55016,1526.7,1526.4,20.06303218]
[1674138741708,6.61616,1526.7,1526.4,20.06303218]
[1674138742039,6.61616,1526.7,1526.4,0.066]
[1674138742246,6.61616,1526.7,1526.3,1.0]
[1674138742498,6.61616,1526.7,1526.3,3.10630322]
[1674138743032,0.066,1526.7,1526.4,3.29174759]
[1674138743348,7.10625,1527.0,1526.5,1.0]
[1674138743654,7.10625,1527.0,1526.5,1.42917476]
[1674138744396,13.6552,1527.0,1526.5,0.42917476]
[1674138744580,13.6552,1527.0,1526.3,10.21525322]
[1674138744792,13.6552,1527.0,1526.3,13.50700081]
[1674138745338,0.5573,1527.0,1526.5,6.55092]
[1674138745490,0.4913,1527.0,1526.6,1.655092]
[1674138746177,0.4913,1527.0,1526.6,21.65212418]
[1674138746397,0.4913,1527.0,1526.6,21.71812418]
[1674138746710,0.5572,1527.1,1526.6,25.00987177]
[1674138746853,10.5173,1527.2,1526.7,12.01344001]
[1674138747065,0.5572,1527.2,1526.9,1.0]
[1674138747381,0.066,1527.3,1527.0,3.29174759]
[1674138747697,0.066,1527.5,1527.1,9.84009759]
[1674138747900,6.61215,1527.7,1527.1,10.23527235]
[1674138748118,0.066,1527.7,1527.2,3.29174759]
[1674138748438,36.88123,1527.9,1527.3,16.38652759]
[1674138748679,0.066,1527.9,1527.4,7.93040035]
[1674138748866,0.2023251,1528.0,1527.5,9.83832759]
[1674138749099,0.2023251,1528.0,1527.6,3.29174759]
[1674138749287,0.2023251,1528.0,1527.6,5.28218035]
[1674138749495,0.2023251,1528.0,1527.6,11.89427035]
[1674138749810,0.2023251,1528.0,1527.7,19.99703218]
[1674138750024,0.2023251,1528.0,1527.7,20.06303218]
[1674138750993,7.7468651,1528.0,1527.7,20.06303218]
[1674138751214,0.77468651,1527.9,1527.7,20.06303218]
[1674138751918,7.81068651,1527.9,1527.7,0.066]
[1674138752264,7.87668651,1527.9,1527.5,20.06303218]
[1674138752478,0.557,1527.9,1527.5,22.0693354]
[1674138752636,0.491,1527.9,1527.5,20.06303218]
[1674138753094,0.491,1527.9,1527.6,1.0]
[1674138753285,0.491,1527.9,1527.5,20.06303218]
[1674138753493,13.8487351,1528.0,1527.5,20.06303218]
[1674138753718,0.2683251,1528.0,1527.6,2.00630322]
[1674138753997,0.2023251,1528.0,1527.6,3.00630322]
[1674138754625,0.2023251,1528.0,1527.7,1.0]
[1674138755733,0.2023251,1528.0,1527.6,3.07230322]
[1674138755946,0.2023251,1528.0,1527.6,6.29805081]
[1674138756160,0.2023251,1528.0,1527.6,6.36405081]
[1674138757674,0.2023251,1528.0,1527.6,2.07230322]
[1674138757930,6.7468251,1528.0,1527.5,20.06303218]
[1674138758203,0.2683251,1528.0,1527.6,1.0]
[1674138758457,0.2023251,1528.0,1527.6,1.0]
[1674138758731,0.2023251,1528.0,1527.6,13.97714157]
[1674138759047,0.2023251,1528.0,1527.6,14.04314157]
[1674138759580,0.2023251,1528.0,1527.6,3.20312921]
[1674138759832,1.2023251,1528.0,1527.5,26.60935218]
[1674138759992,13.2913251,1528.0,1527.5,20.06303218]
[1674138760194,16.64907269,1528.0,1527.5,20.06303218]
[1674138760406,1.66490727,1527.9,1527.5,20.06303218]
[1674138760617,8.21008727,1527.9,1527.5,20.06303218]
[1674138760826,8.27608727,1527.9,1527.5,20.06303218]
[1674138761137,1.73090727,1527.9,1527.5,20.06303218]
[1674138761451,0.2683251,1528.0,1527.5,29.90132977]
[1674138761691,0.2023251,1528.0,1527.5,36.44796977]
[1674138762108,0.2023251,1528.0,1527.5,29.90132977]
[1674138762109,6.7468351,1528.0,1527.5,29.90132977]
[1674138762351,8.19761161,1528.0,1527.5,29.90132977]
[1674138762504,18.0338692,1528.0,1527.5,20.06303218]
[1674138763409,0.491,1527.9,1527.5,20.06303218]
[1674138763716,15.43383692,1527.9,1527.5,20.06303218]
[1674138764039,7.10201,1527.9,1527.5,20.06303218]
[1674138764188,7.10201,1527.9,1527.5,29.90141977]
[1674138764189,0.066,1527.9,1527.5,29.90141977]
[1674138764559,0.2023251,1528.0,1527.5,36.44805977]
[1674138764766,0.1523251,1528.0,1527.5,36.44805977]
[1674138764923,1.53210761,1528.0,1527.5,26.60967218]
[1674138765183,14.62130761,1528.0,1527.5,26.60967218]
[1674138765401,14.68730761,1528.0,1527.5,20.06303218]